fUST/lending_fUST_20250707
["ID","MTS","AMOUNT","RATE_DAILY","PERIOD"]
[370043558,1751861443565,-501.07989023,0.00024873,2]
[370043559,1751861443575,-500.0,0.00024873,2]
[370043560,1751861443585,-150.0,0.00024873,2]
[370043561,1751861443595,-150.4315,0.00024875,2]
[370043562,1751861443605,-238011.9546,0.00024899,4]
[370043563,1751861443615,-2000.0,0.000249,2]
[370043564,1751861443625,-2000.0,0.000249,2]
[370043565,1751861443635,-151.0,0.000249,7]
[370043566,1751861443644,-500.8130656,0.000249,9]
[370043567,1751861443653,-500.0,0.000249,9]
[370043568,1751861443663,-537590.05814916,0.000249,2]
[370043569,1751861443723,-466.0,0.00024658,2]
[370043570,1751861443744,-466.0,0.00024685,2]
[370043571,1751861443754,-466.0,0.00024713,2]
[370043572,1751861443764,-466.0,0.0002474,2]
[370043573,1751861443774,-466.0,0.00024768,2]
[370043574,1751861443784,-466.0,0.00024795,2]
[370043575,1751861443794,-466.0,0.00024822,2]
[370043576,1751861443803,-466.0,0.0002485,2]
[370043577,1751861443813,-466.0,0.00024877,2]
[370043578,1751861443822,-69430.13642627,0.000249,2]
[370043579,1751861443940,-175.99765922,0.00020854,2]
[370043580,1751861443953,-619.39013446,0.000249,2]
[370043590,1751861545399,2110.33,0.00027397,120]
[370043591,1751861608575,215.557662,0.00013699,2]
[370043592,1751861640822,1056.74580144,0.000176,6]
[370043595,1751862398083,-153.54013423,0.00016953,2]
[370043596,1751862405259,24900.0,0.00016793,2]
[370043597,1751862431115,-1.00338698,0.00016953,2]
[370043598,1751862431134,-174.0,0.00017053,2]
[370043599,1751862431152,-179.0,0.00017053,2]
[370043600,1751862431173,-204.31442522,0.00017053,2]
[370043601,1751862442087,-300.68557478,0.00017053,2]
[370043602,1751862442112,-374.79142522,0.00017055,2]
[370043603,1751862515826,11961.39067983,0.00016209,2]
[370043609,1751862525413,452.999999,0.00025337,120]
[370043614,1751862546307,-648.11651633,0.00017,2]
[370043615,1751862546331,-34.90724299,0.00017055,2]
[370043616,1751862546351,-460.0,0.00017055,2]
[370043617,1751862546371,-865.0,0.00017327,2]
[370043618,1751862546392,-300.0,0.00017327,2]
[370043619,1751862546412,-460.0,0.00017328,2]
[370043620,1751862546433,-460.0,0.00017328,2]
[370043621,1751862546454,-460.0,0.00017328,2]
[370043622,1751862546479,-460.0,0.00017328,2]
[370043623,1751862546504,-460.0,0.00017328,2]
[370043624,1751862546527,-460.0,0.00017328,2]
[370043625,1751862546551,-460.0,0.00017328,2]
[370043626,1751862546574,-460.0,0.00017328,2]
[370043627,1751862546594,-460.0,0.00017328,2]
[370043628,1751862546615,-460.0,0.00017328,2]
[370043629,1751862546636,-460.0,0.00017328,2]
[370043630,1751862546661,-520.78,0.00017328,2]
[370043631,1751862546683,-460.0,0.00017328,2]
[370043632,1751862546706,-460.0,0.00017328,2]
[370043633,1751862546727,-460.0,0.00017328,2]
[370043634,1751862546749,-462.72400672,0.00017328,2]
[370043635,1751862546770,-460.0,0.00017329,2]
[370043636,1751862546792,-164.8,0.00017602,2]
[370043637,1751862546813,-509.91,0.00017602,2]
[370043638,1751862546835,-460.0,0.00017602,2]
[370043639,1751862546855,-460.0,0.00017602,2]
[370043640,1751862546875,-460.0,0.00017603,2]
[370043641,1751862546895,-230.70625152,0.00017755,2]
[370043642,1751862546916,-460.0,0.00017875,2]
[370043643,1751862546937,-165.47,0.00017876,2]
[370043644,1751862546959,-182.63888723,0.00017877,2]
[370043645,1751862548088,-438.18334338,0.00017328,2]
[370043646,1751862556098,-21.81665662,0.00017328,2]
[370043647,1751862556120,-434.86561201,0.00017328,2]
[370043650,1751862572162,-25.13438799,0.00017328,2]
[370043651,1751862572183,-460.0,0.00017328,2]
[370043652,1751862572204,-277.36111277,0.00017877,2]
[370043653,1751862572225,-461.43559944,0.00018006,2]
[370043654,1751862572244,-460.0,0.00018006,2]
[370043655,1751862572264,-460.0,0.00018151,2]
[370043656,1751862572283,-177.37089849,0.00018177,2]
[370043657,1751862585868,471.46,0.00017055,2]
[370043658,1751862587206,100.69404477,0.00017328,2]
[370043684,1751862632769,-359.30595523,0.00017328,2]
[370043686,1751862632778,-460.0,0.00017328,2]
[370043688,1751862632788,-460.0,0.00017328,2]
[370043689,1751862632798,-300.0,0.00018275,2]
[370043691,1751862632807,-460.0,0.00018276,2]
[370043692,1751862632817,-460.0,0.00018276,2]
[370043693,1751862632827,-460.0,0.00018276,2]
[370043694,1751862632837,-460.0,0.00018276,2]
[370043695,1751862632847,-460.0,0.00018276,2]
[370043696,1751862632856,-450.0,0.00018276,2]
[370043697,1751862632865,-462.87599451,0.00018276,2]
[370043699,1751862632875,-460.0,0.00018276,2]
[370043701,1751862632884,-460.0,0.00018276,2]
[370043704,1751862632893,-584.31,0.00018276,2]
[370043705,1751862632903,-460.0,0.00018276,2]
[370043707,1751862632912,-460.93439165,0.00018277,2]
[370043708,1751862632921,-460.991895,0.00018277,2]
[370043709,1751862632930,-466.29818054,0.00018277,2]
[370043710,1751862632940,-338.69620141,0.00018277,2]
[370043711,1751862632949,-460.0,0.00018277,2]
[370043712,1751862632958,-408.04133836,0.00018277,2]
[370043713,1751862632967,-462.27660395,0.00018277,2]
[370043714,1751862632976,-460.0,0.00018277,2]
[370043715,1751862632986,-472.57671558,0.00018277,2]
[370043716,1751862632995,-461.12920124,0.00018277,2]
[370043717,1751862633004,-460.0,0.00018277,2]
[370043718,1751862633014,-460.0,0.00018277,2]
[370043719,1751862633023,-460.0,0.00018277,2]
[370043720,1751862633033,-460.0,0.00018277,2]
[370043721,1751862633042,-460.0,0.00018277,2]
[370043722,1751862633052,-460.0,0.00018277,2]
[370043723,1751862633061,-460.0,0.00018277,2]
[370043724,1751862633070,-522.88,0.00018277,2]
[370043725,1751862633080,-460.0,0.00018277,2]
[370043726,1751862633089,-460.0,0.00018277,2]
[370043727,1751862633099,-460.0,0.00018277,2]
[370043728,1751862633108,-460.0,0.00018277,2]
[370043729,1751862633118,-460.0,0.00018277,2]
[370043730,1751862633127,-460.0,0.00018277,2]
[370043731,1751862633137,-460.0,0.00018277,2]
[370043732,1751862633146,-532.69809761,0.00018277,2]
[370043733,1751862633156,-460.0,0.00018277,2]
[370043734,1751862633165,-460.0,0.00018277,2]
[370043735,1751862633175,-460.0,0.00018277,2]
[370043736,1751862633185,-460.0,0.00018277,2]
[370043737,1751862633194,-460.0,0.00018277,2]
[370043738,1751862633203,-460.0,0.00018277,2]
[370043739,1751862633213,-460.0,0.00018278,2]
[370043740,1751862633222,-539.63516737,0.00018278,2]
[370043741,1751862633231,-460.0,0.00018278,2]
[370043742,1751862633241,-460.0,0.00018278,2]
[370043743,1751862633250,-460.99556112,0.00018278,2]
[370043744,1751862633260,-460.0,0.00018278,2]
[370043745,1751862633269,-593.43,0.00018278,2]
[370043746,1751862633278,-170.87422077,0.00018278,2]
[370043747,1751862633288,-461.72948402,0.00018278,2]
[370043748,1751862633297,-460.0,0.00018278,2]
[370043749,1751862633306,-460.0,0.00018425,2]
[370043750,1751862633316,-187.76556592,0.00018451,2]
[370043751,1751862633325,-460.0,0.0001855,2]
[370043752,1751862633334,-460.0,0.00018551,2]
[370043753,1751862633344,-460.0,0.00018551,2]
[370043754,1751862633353,-460.0,0.00018551,2]
[370043755,1751862633363,-460.0,0.00018551,2]
[370043756,1751862633372,-460.0,0.00018551,2]
[370043757,1751862633381,-460.0,0.00018552,2]
[370043758,1751862633391,-460.0,0.00018699,2]
[370043759,1751862633400,-210.14797405,0.00018728,2]
[370043760,1751862633410,-460.0,0.00018825,2]
[370043761,1751862633419,-460.0,0.00018825,2]
[370043762,1751862633429,-460.0,0.00018825,2]
[370043763,1751862633438,-184.36,0.00018825,2]
[370043764,1751862633448,-432.53326399,0.00018825,2]
[370043765,1751862633457,-460.0,0.00018826,2]
[370043766,1751862633467,-347.52351766,0.000189,2]
[370043767,1751862633476,-380.95482601,0.000189,2]
[370043768,1751862633486,-596.14,0.00018973,2]
[370043769,1751862633495,-302.63687509,0.00019,2]
[370043770,1751862633505,-210.02374942,0.00019082,2]
[370043771,1751862633515,-460.0,0.00019099,2]
[370043772,1751862633524,-460.0,0.00019099,2]
[370043773,1751862633535,-460.0,0.00019099,2]
[370043774,1751862633544,-460.0,0.000191,2]
[370043775,1751862633554,-380.95482575,0.00019141,2]
[370043776,1751862633564,-500.0,0.00019167,2]
[370043777,1751862633573,-500.0,0.00019167,2]
[370043778,1751862633583,-235.02794,0.00019178,2]
[370043779,1751862633592,-302.63687509,0.0001919,2]
[370043780,1751862633602,-290.53,0.00019373,2]
[370043781,1751862633611,-189.98,0.00019373,2]
[370043782,1751862633621,-573.89279152,0.00019374,2]
[370043783,1751862633631,-302.63687509,0.0001938,2]
[370043784,1751862633640,-380.95482575,0.00019383,2]
[370043785,1751862633649,-428.03076355,0.0001957,2]
[370043786,1751862633659,-380.95482575,0.00019624,2]
[370043787,1751862633669,-501.59843485,0.00019715,2]
[370043788,1751862633682,-380.95482575,0.00019866,2]
[370043789,1751862633692,-420.0,0.00019934,2]
[370043790,1751862633701,-10363.48029865,0.0002,2]
[370043796,1751862638640,-1033.58533371,0.0002,2]
[370043797,1751862638653,-1000.9999859,0.0002,2]
[370043802,1751862638694,-900.76597317,0.0002,2]
[370043805,1751862638707,-29991.43281414,0.0002,2]
[370043807,1751862638716,-380.95482575,0.00020107,2]
[370043809,1751862638727,-215.557662,0.00020187,2]
[370043811,1751862638737,-380.95482575,0.00020348,3]
[370043813,1751862638746,-380.95482575,0.0002059,3]
[370043815,1751862638756,-471.43,0.000207,2]
[370043817,1751862638766,-417.901,0.00020769,2]
[370043819,1751862638776,-380.95482575,0.00020831,4]
[370043821,1751862638785,-160.0,0.00020856,2]
[370043823,1751862638794,-230.48668418,0.00020856,2]
[370043825,1751862638803,-215.21338352,0.00020856,2]
[370043827,1751862638812,-160.0,0.00020856,2]
[370043828,1751862638821,-848.27993403,0.00020856,2]
[370043831,1751862638830,-160.0,0.00020856,2]
[370043832,1751862638841,-160.0,0.00020856,2]
[370043834,1751862638850,-837.79946008,0.00020856,2]
[370043836,1751862638859,-12584.46609586,0.00020856,2]
[370043839,1751862638868,-214.06929976,0.00020856,2]
[370043841,1751862638878,-6173.67569541,0.00021,2]
[370043843,1751862638889,-4424.23979782,0.00021,2]
[370043845,1751862638901,-364.52002253,0.00021,2]
[370043847,1751862638913,-2238.04190898,0.00021,2]
[370043850,1751862638924,-1293.46874142,0.00021,2]
[370043852,1751862638935,-444.99950906,0.00021,2]
[370043854,1751862638946,-401.42757738,0.00021,2]
[370043856,1751862638957,-1368.60853748,0.00021,2]
[370043858,1751862638968,-713.1131465,0.00021,2]
[370043861,1751862638978,-1204.37419258,0.00021,2]
[370043863,1751862638989,-658.72203551,0.00021,2]
[370043865,1751862639000,-3473.16991601,0.00021,2]
[370043867,1751862639012,-201.63851388,0.00021,2]
[370043869,1751862639021,-380.95482575,0.00021072,4]
[370043871,1751862639031,-430.98873491,0.00021263,2]
[370043873,1751862639040,-380.95482575,0.00021314,5]
[370043875,1751862639050,-380.95482575,0.00021555,5]
[370043877,1751862639059,-587.0,0.00021745,2]
[370043880,1751862639069,-380.95482575,0.00021797,6]
[370043882,1751862639078,-187.7655659,0.00021844,2]
[370043884,1751862639087,-150.10871217,0.00021918,2]
[370043886,1751862639097,-19594.45,0.0002199,10]
[370043888,1751862639106,-185.67303287,0.00021999,2]
[370043890,1751862639115,-13420.83234663,0.00022,2]
[370043892,1751862639126,-329.94489861,0.00022,2]
[370043894,1751862639138,-959.7504161,0.00022,2]
[370043896,1751862639149,-15517.07947574,0.00022,2]
[370043899,1751862639161,-5884.09107608,0.00022,2]
[370043901,1751862639171,-352.20133888,0.00022,2]
[370043903,1751862639180,-14120.39708165,0.00022,2]
[370043905,1751862639193,-549.71718887,0.00022,2]
[370043907,1751862639203,-34849.95938831,0.00022,2]
[370043909,1751862639212,-380.95482575,0.00022038,6]
[370043911,1751862639221,-380.95482575,0.00022279,6]
[370043913,1751862639231,-1723.95493965,0.00022367,2]
[370043915,1751862639240,-252.92396203,0.000224,2]
[370043917,1751862639249,-130467.78417314,0.0002249,7]
[370043919,1751862639258,-1005.08652503,0.000225,2]
[370043921,1751862639268,-380.95482575,0.00022521,7]
[370043923,1751862639278,-2614.02,0.00022588,6]
[370043926,1751862639287,-132527.54207327,0.000226,5]
[370043928,1751862639297,-235.02794,0.00022603,2]
[370043930,1751862639306,-2614.02,0.00022688,4]
[370043932,1751862639316,-380.95482575,0.00022762,7]
[370043934,1751862639325,-1038.00452864,0.0002277,2]
[370043936,1751862639334,-2614.02,0.00022788,3]
[370043938,1751862639344,-2614.02,0.00022888,6]
[370043940,1751862639353,-97894.04805221,0.00022919,2]
[370043942,1751862639362,-252.92396202,0.0002295,2]
[370043944,1751862639372,-160.0,0.00022969,3]
[370043946,1751862639382,-2614.02,0.00022988,7]
[370043948,1751862639392,-160.0,0.00023,2]
[370043950,1751862639401,-471.43,0.00023,7]
[370043952,1751862639411,-380.95482575,0.00023003,8]
[370043954,1751862639421,-2614.02,0.00023088,6]
[370043956,1751862639430,-2614.02,0.00023188,3]
[370043958,1751862639439,-380.95482575,0.00023245,8]
[370043960,1751862639449,-524.98484073,0.00023267,10]
[370043962,1751862639458,-214.06929976,0.00023268,10]
[370043964,1751862639467,-2614.02,0.00023288,2]
[370043966,1751862639476,-2614.02,0.00023388,6]
[370043968,1751862639485,-8846.88368353,0.000234,2]
[370043970,1751862639495,-168.0,0.00023406,2]
[370043972,1751862639504,-848.27993403,0.00023455,10]
[370043975,1751862639517,-563.94639267,0.00023464,2]
[370043976,1751862639527,-207.4,0.00023465,2]
[370043979,1751862639536,-1500.0,0.00023465,2]
[370043981,1751862639546,-1500.0,0.00023465,2]
[370043982,1751862639555,-1500.0,0.00023465,2]
[370043985,1751862639565,-1500.0,0.00023465,2]
[370043987,1751862639575,-1500.0,0.00023465,2]
[370043989,1751862639584,-1500.0,0.00023465,2]
[370043991,1751862639593,-1500.0,0.00023465,2]
[370043993,1751862639603,-1500.0,0.00023465,2]
[370043995,1751862639612,-1500.0,0.00023465,2]
[370043997,1751862639622,-1500.0,0.00023465,2]
[370043999,1751862639632,-1500.0,0.00023465,2]
[370044001,1751862639642,-690.642,0.00023465,2]
[370044003,1751862639651,-25000.0,0.00023465,2]
[370044005,1751862639661,-17193.33296765,0.00023465,2]
[370044007,1751862639671,-5000.0,0.00023465,2]
[370044009,1751862639682,-500.42383133,0.00023473,2]
[370044011,1751862639691,-500.0,0.00023473,2]
[370044013,1751862639701,-500.0,0.00023473,2]
[370044014,1751862639712,-501.07989023,0.00023473,2]
[370044015,1751862639721,-161.20848038,0.00023473,2]
[370044016,1751862639731,-600.0,0.00023473,2]
[370044017,1751862639740,-500.0,0.00023473,2]
[370044018,1751862639750,-500.0,0.00023473,2]
[370044019,1751862639759,-500.0,0.00023473,2]
[370044020,1751862639769,-500.0,0.00023473,2]
[370044021,1751862639778,-500.0,0.00023473,2]
[370044022,1751862639788,-617.37973056,0.00023473,2]
[370044023,1751862639797,-380.95482575,0.00023486,9]
[370044024,1751862639807,-2614.02,0.00023488,3]
[370044025,1751862639816,-214.06929976,0.00023489,10]
[370044026,1751862639826,-121346.2,0.000235,2]
[370044027,1751862639837,-3103.92,0.000235,7]
[370044028,1751862639847,-252.92396202,0.000235,2]
[370044029,1751862639857,-716.195754,0.0002352,2]
[370044030,1751862639867,-200.0,0.00023561,2]
[370044031,1751862639876,-200.0,0.00023561,2]
[370044032,1751862639885,-200.0,0.00023561,2]
[370044033,1751862639894,-200.0,0.00023561,2]
[370044034,1751862639904,-200.0,0.00023561,2]
[370044035,1751862639913,-304.53261215,0.00023561,2]
[370044036,1751862639923,-168.0,0.0002357,2]
[370044039,1751862639941,-742.6949969,0.00023575,2]
[370044042,1751862639953,-2614.02,0.00023588,2]
[370044044,1751862639963,-770.17471178,0.0002363,2]
[370044046,1751862639973,-798.67117612,0.00023685,2]
[370044048,1751862639983,-2614.02,0.00023688,2]
[370044050,1751862639993,-576.0368563,0.00023699,2]
[370044052,1751862640003,-307.3747141,0.00023699,2]
[370044054,1751862640013,-160.0,0.00023707,4]
[370044056,1751862640023,-823.0,0.00023719,2]
[370044058,1751862640032,-380.95482575,0.00023728,9]
[370044060,1751862640042,-828.22200964,0.0002374,2]
[370044062,1751862640052,-2614.02,0.00023788,3]
[370044064,1751862640062,-160.0,0.00023788,3]
[370044066,1751862640071,-214.06929976,0.0002379,3]
[370044068,1751862640081,-230.48668418,0.0002379,3]
[370044070,1751862640091,-215.21338352,0.0002379,3]
[370044072,1751862640100,-160.0,0.0002379,3]
[370044074,1751862640110,-160.0,0.0002379,3]
[370044076,1751862640120,-12584.46609586,0.0002379,3]
[370044078,1751862640130,-837.79946008,0.0002379,3]
[370044081,1751862640140,-711.17239061,0.00023795,2]
[370044083,1751862640149,-2614.02,0.00023888,4]
[370044085,1751862640159,-347.52351766,0.000239,2]
[370044087,1751862640169,-380.95482575,0.00023969,10]
[370044090,1751862640178,-2614.02,0.00023988,5]
[370044093,1751862640188,-230.48668418,0.00024,10]
[370044096,1751862640197,-215.21338352,0.00024,10]
[370044099,1751862640207,-160.0,0.00024,10]
[370044102,1751862640217,-160.0,0.00024,10]
[370044105,1751862640226,-160.0,0.00024,7]
[370044108,1751862640237,-160.0,0.00024,10]
[370044111,1751862640247,-281.0,0.00024006,2]
[370044114,1751862640257,-25000.0,0.00024013,2]
[370044117,1751862640267,-5000.0,0.00024013,2]
[370044120,1751862640276,-500.0,0.00024021,2]
[370044123,1751862640286,-501.71811265,0.00024021,2]
[370044126,1751862640296,-1200.0,0.00024021,2]
[370044129,1751862640306,-1000.0,0.00024021,2]
[370044132,1751862640315,-1000.0,0.00024021,2]
[370044136,1751862640324,-1000.0,0.00024021,2]
[370044139,1751862640335,-501.60560601,0.00024021,2]
[370044142,1751862640344,-252.92396202,0.0002405,2]
[370044145,1751862640354,-2614.02,0.00024088,4]
[370044148,1751862640364,-471.43,0.000241,7]
[370044151,1751862640373,-648.015,0.00024112,2]
[370044154,1751862640383,-2153.0,0.00024112,2]
[370044157,1751862640393,-406.0,0.00024112,2]
[370044160,1751862640403,-429.128,0.00024112,2]
[370044163,1751862640414,-967.0,0.00024112,2]
[370044166,1751862640423,-2200.0,0.00024131,2]
[370044169,1751862640434,-2614.02,0.00024188,4]
[370044172,1751862640443,-151.0,0.00024191,7]
[370044175,1751862640453,-380.95482575,0.0002421,10]
[370044178,1751862640462,-2614.02,0.00024288,3]
[370044181,1751862640472,-8846.88368351,0.00024319,2]
[370044184,1751862640482,-695.511782,0.00024384,2]
[370044188,1751862640491,-2614.02,0.00024388,6]
[370044190,1751862640501,-3967.07919496,0.0002439,2]
[370044194,1751862640511,-281.0,0.00024403,2]
[370044197,1751862640520,-1284.0,0.00024441,7]
[370044199,1751862640530,-160.0,0.00024444,5]
[370044201,1751862640540,-380.95482575,0.00024452,11]
[370044203,1751862640550,-2614.02,0.00024488,5]
[370044205,1751862640560,-9781.80335578,0.000245,2]
[370044207,1751862640570,-200.0,0.000245,2]
[370044209,1751862640580,-2314.177802,0.000245,4]
[370044211,1751862640590,-177.763542,0.00024521,2]
[370044213,1751862640600,-159.4922776,0.00024521,2]
[370044215,1751862640610,-177.763542,0.00024521,2]
[370044217,1751862640619,-159.4922776,0.00024521,2]
[370044219,1751862640629,-159.4922776,0.00024521,2]
[370044221,1751862640639,-177.763542,0.00024521,2]
[370044223,1751862640649,-175.7988812,0.00024521,2]
[370044225,1751862640659,-159.4922776,0.00024521,2]
[370044227,1751862640670,-159.0891771,0.00024521,2]
[370044229,1751862640684,-281.0,0.0002453,2]
[370044231,1751862640694,-991.02615029,0.00024551,4]
[370044233,1751862640704,-991.02615029,0.00024551,4]
[370044235,1751862640714,-991.02615029,0.00024551,4]
[370044237,1751862640724,-991.02615029,0.00024551,4]
[370044239,1751862640735,-991.02615029,0.00024551,4]
[370044241,1751862640744,-991.02615029,0.00024551,4]
[370044243,1751862640755,-991.02615029,0.00024551,4]
[370044245,1751862640766,-991.02615029,0.00024551,4]
[370044247,1751862640776,-991.02615029,0.00024551,4]
[370044250,1751862640786,-991.02615029,0.00024551,4]
[370044251,1751862640795,-991.02615029,0.00024551,4]
[370044254,1751862640806,-991.02615029,0.00024551,4]
[370044256,1751862640815,-991.02615029,0.00024551,4]
[370044258,1751862640825,-991.02615029,0.00024551,4]
[370044260,1751862640835,-991.02615029,0.00024551,4]
[370044262,1751862640844,-991.02615029,0.00024551,4]
[370044265,1751862640854,-991.02615029,0.00024551,4]
[370044268,1751862640864,-991.02615029,0.00024551,4]
[370044271,1751862640873,-991.02615029,0.00024551,4]
[370044274,1751862640883,-991.02,0.00024551,4]
[370044276,1751862640892,-2312.39435067,0.00024551,4]
[370044279,1751862640902,-2312.39435067,0.00024551,4]
[370044282,1751862640911,-2312.39435067,0.00024551,4]
[370044285,1751862640921,-2312.39435067,0.00024551,4]
[370044288,1751862640931,-2312.39435067,0.00024551,4]
[370044290,1751862640941,-2312.39435067,0.00024551,4]
[370044292,1751862640951,-2312.39435067,0.00024551,4]
[370044294,1751862640961,-2312.39435067,0.00024551,4]
[370044322,1751862640972,-2312.39435067,0.00024551,4]
[370044324,1751862641146,-2312.39435067,0.00024551,4]
[370044327,1751862641156,-2312.39435067,0.00024551,4]
[370044329,1751862641166,-2312.39435067,0.00024551,4]
[370044331,1751862641176,-2312.39435067,0.00024551,4]
[370044333,1751862641185,-2312.39435067,0.00024551,4]
[370044335,1751862641195,-2312.39435067,0.00024551,4]
[370044337,1751862641204,-2312.39435067,0.00024551,4]
[370044339,1751862641213,-2312.39435067,0.00024551,4]
[370044340,1751862641222,-2312.39435067,0.00024551,4]
[370044342,1751862641236,-2312.39435067,0.00024551,4]
[370044344,1751862641245,-150.18282476,0.00024551,4]
[370044346,1751862641254,-150.18282476,0.00024551,4]
[370044348,1751862641264,-150.18282476,0.00024551,4]
[370044350,1751862641273,-150.18282476,0.00024551,4]
[370044352,1751862641282,-150.18282476,0.00024551,4]
[370044354,1751862641292,-150.18282476,0.00024551,4]
[370044356,1751862641301,-150.18282476,0.00024551,4]
[370044358,1751862641311,-150.18282476,0.00024551,4]
[370044360,1751862641320,-150.18282476,0.00024551,4]
[370044362,1751862641329,-150.18282476,0.00024551,4]
[370044364,1751862641339,-150.18282476,0.00024551,4]
[370044366,1751862641348,-150.18282476,0.00024551,4]
[370044368,1751862641357,-150.18282476,0.00024551,4]
[370044370,1751862641367,-150.18282476,0.00024551,4]
[370044372,1751862641376,-150.18282476,0.00024551,4]
[370044374,1751862641387,-150.18282476,0.00024551,4]
[370044376,1751862641398,-150.18282476,0.00024551,4]
[370044378,1751862641408,-150.18282476,0.00024551,4]
[370044380,1751862641417,-150.18282476,0.00024551,4]
[370044382,1751862641426,-150.18,0.00024551,4]
[370044384,1751862641435,-350.42659112,0.00024551,4]
[370044385,1751862641444,-350.42659112,0.00024551,4]
[370044386,1751862641453,-350.42659112,0.00024551,4]
[370044387,1751862641462,-350.42659112,0.00024551,4]
[370044388,1751862641472,-350.42659112,0.00024551,4]
[370044389,1751862641481,-350.42659112,0.00024551,4]
[370044390,1751862641490,-350.42659112,0.00024551,4]
[370044391,1751862641499,-350.42659112,0.00024551,4]
[370044392,1751862641509,-350.42659112,0.00024551,4]
[370044393,1751862641520,-350.42659112,0.00024551,4]
[370044394,1751862641530,-350.42659112,0.00024551,4]
[370044395,1751862641541,-350.42659112,0.00024551,4]
[370044396,1751862641553,-350.42659112,0.00024551,4]
[370044397,1751862641565,-350.42659112,0.00024551,4]
[370044398,1751862641575,-350.42659112,0.00024551,4]
[370044399,1751862641586,-350.42659112,0.00024551,4]
[370044400,1751862641595,-350.42659112,0.00024551,4]
[370044401,1751862641605,-350.42659112,0.00024551,4]
[370044402,1751862641614,-350.42659112,0.00024551,4]
[370044403,1751862641623,-5000.0,0.00024561,2]
[370044404,1751862641633,-512.7884035,0.00024568,2]
[370044405,1751862641642,-1800.0,0.00024568,2]
[370044406,1751862641652,-1500.0,0.00024568,2]
[370044407,1751862641661,-501.86266387,0.00024568,2]
[370044408,1751862641671,-1500.0,0.00024568,2]
[370044409,1751862641682,-151.0,0.00024582,7]
[370044410,1751862641691,-2614.02,0.00024588,2]
[370044411,1751862641701,-3103.92,0.000246,7]
[370044412,1751862641710,-151.0,0.000246,9]
[370044413,1751862641721,-214.06929976,0.000246,7]
[370044414,1751862641731,-230.48668418,0.000246,7]
[370044415,1751862641740,-215.21338352,0.000246,7]
[370044416,1751862641749,-160.0,0.000246,7]
[370044417,1751862641759,-160.0,0.000246,7]
[370044418,1751862641768,-252.92396202,0.000246,2]
[370044419,1751862641778,-86335.33365112,0.0002465,2]
[370044420,1751862641787,-501.10567785,0.0002465,2]
[370044421,1751862641797,-71623.11517033,0.00024651,2]
[370044422,1751862641806,-300.0,0.00024657,4]
[370044423,1751862641816,-300.0,0.00024657,4]
[370044424,1751862641825,-300.0,0.00024657,4]
[370044425,1751862641835,-300.0,0.00024657,4]
[370044426,1751862641845,-300.0,0.00024657,4]
[370044427,1751862641856,-300.0,0.00024657,4]
[370044428,1751862641866,-327.85232221,0.00024657,4]
[370044429,1751862641876,-200.0,0.00024657,2]
[370044430,1751862641885,-210.00855503,0.00024657,2]
[370044431,1751862641894,-150.0,0.00024658,2]
[370044432,1751862641903,-380.0,0.00024658,2]
[370044433,1751862641914,-200.0,0.00024658,15]
[370044434,1751862641923,-2614.02,0.00024688,6]
[370044435,1751862641933,-380.95482575,0.00024693,11]
[370044436,1751862641944,-110740.53396687,0.000247,2]
[370044437,1751862642151,-837.79946008,0.00024,7]
[370044438,1751862642161,-333.8023839,0.00024,10]
[370044439,1751862642173,-503.99707618,0.00024,10]
[370044440,1751862642182,-2270.96895537,0.000247,2]
[370044441,1751862642194,-8334.69707776,0.000247,2]
[370044442,1751862642204,-214.06929976,0.000247,7]